[Event "*** SCC Grand Prix: Titled Tuesday Blitz"]
[Site "Chess.com"]
[Date "2020.10.13"]
[Round "10"]
[White "Brave_spirit12"]
[Black "azikom"]
[Result "0-1"]
[WhiteElo "2483"]
[BlackElo "2628"]
[TimeControl "180+1"]
[EndTime "11:55:40 PDT"]
[Termination "azikom won on time"]

1. e4 {[%clk 0:03:00.9]} 1... c5 {[%clk 0:02:59]} 2. c3 {[%clk 0:02:59.8]} 2...
e6 {[%clk 0:02:59.3]} 3. d4 {[%clk 0:02:58]} 3... d5 {[%clk 0:02:59.8]} 4. Nd2
{[%clk 0:02:56.8]} 4... cxd4 {[%clk 0:02:59.4]} 5. cxd4 {[%clk 0:02:54.5]} 5...
Nc6 {[%clk 0:02:59.5]} 6. Ngf3 {[%clk 0:02:52.7]} 6... dxe4 {[%clk 0:02:58.8]}
7. Nxe4 {[%clk 0:02:53.5]} 7... Bb4+ {[%clk 0:02:59.6]} 8. Bd2 {[%clk
0:02:50.1]} 8... Bxd2+ {[%clk 0:02:58.2]} 9. Qxd2 {[%clk 0:02:50.5]} 9... Nge7
{[%clk 0:02:58.2]} 10. Bd3 {[%clk 0:02:49.5]} 10... O-O {[%clk 0:02:59]} 11. O-O
{[%clk 0:02:48.1]} 11... h6 {[%clk 0:02:58.6]} 12. Rfe1 {[%clk 0:02:35.6]} 12...
Nxd4 {[%clk 0:02:50.7]} 13. Nf6+ {[%clk 0:02:30.5]} 13... Kh8 {[%clk 0:02:42.2]}
14. Ne5 {[%clk 0:02:19.7]} 14... Nec6 {[%clk 0:02:31.8]} 15. Nh5 {[%clk
0:02:02.7]} 15... Nxe5 {[%clk 0:02:15.8]} 16. Rxe5 {[%clk 0:02:03.6]} 16... Nc6
{[%clk 0:02:14.8]} 17. Ree1 {[%clk 0:01:55.1]} 17... Qg5 {[%clk 0:02:11.6]} 18.
Qxg5 {[%clk 0:01:50.8]} 18... hxg5 {[%clk 0:02:10.6]} 19. Rad1 {[%clk
0:01:47.7]} 19... e5 {[%clk 0:01:57.9]} 20. Bb5 {[%clk 0:01:39]} 20... Bg4
{[%clk 0:01:56.8]} 21. Be2 {[%clk 0:01:32.3]} 21... Bxe2 {[%clk 0:01:50.7]} 22.
Rxe2 {[%clk 0:01:33.2]} 22... Rfd8 {[%clk 0:01:50.5]} 23. Red2 {[%clk 0:01:33]}
23... Rxd2 {[%clk 0:01:48.8]} 24. Rxd2 {[%clk 0:01:33.1]} 24... Nd4 {[%clk
0:01:49.2]} 25. h3 {[%clk 0:01:15.8]} 25... Rc8 {[%clk 0:01:49.2]} 26. Ng3
{[%clk 0:01:14.9]} 26... f6 {[%clk 0:01:44.7]} 27. Ne4 {[%clk 0:01:03.8]} 27...
Rc1+ {[%clk 0:01:44.8]} 28. Kh2 {[%clk 0:01:02.4]} 28... Kg8 {[%clk 0:01:44.6]}
29. Nd6 {[%clk 0:00:59.4]} 29... b6 {[%clk 0:01:44.2]} 30. b4 {[%clk 0:00:57.6]}
30... Kf8 {[%clk 0:01:42.2]} 31. a4 {[%clk 0:00:56.2]} 31... Ke7 {[%clk
0:01:38.3]} 32. Ne4 {[%clk 0:00:56]} 32... Ke6 {[%clk 0:01:35]} 33. a5 {[%clk
0:00:48]} 33... b5 {[%clk 0:01:34.3]} 34. Nc5+ {[%clk 0:00:46.9]} 34... Kd5
{[%clk 0:01:32.9]} 35. f3 {[%clk 0:00:15.7]} 35... Rc2 {[%clk 0:01:25.5]} 36.
Rd3 {[%clk 0:00:13.6]} 36... Kc4 {[%clk 0:01:21]} 37. a6 {[%clk 0:00:11.8]}
37... Kxb4 {[%clk 0:01:15.7]} 38. Ne4 {[%clk 0:00:10]} 38... Kc4 {[%clk
0:01:11.7]} 39. Ra3 {[%clk 0:00:05.4]} 39... b4 {[%clk 0:01:11.6]} 40. Ra5
{[%clk 0:00:04.1]} 40... b3 {[%clk 0:01:09.6]} 41. Rc5+ {[%clk 0:00:03.8]} 41...
Kb4 {[%clk 0:01:08.3]} 42. Rd5 {[%clk 0:00:03.2]} 42... b2 {[%clk 0:01:08.1]}
43. Rd7 {[%clk 0:00:01.4]} 43... b1=Q {[%clk 0:01:04.8]} 44. Rxa7 {[%clk
0:00:01.7]} 44... Nb5 {[%clk 0:01:05.3]} 45. Rb7 {[%clk 0:00:01.8]} 45... Ra2
{[%clk 0:01:02.8]} 46. a7 {[%clk 0:00:02.3]} 46... Rxa7 {[%clk 0:01:02.1]} 47.
Rxb5+ {[%clk 0:00:03]} 47... Kxb5 {[%clk 0:01:00.9]} 48. Nc3+ {[%clk 0:00:02.7]}
48... Kc4 {[%clk 0:01:01.4]} 49. Nxb1 {[%clk 0:00:03.6]} 49... Kd3 {[%clk
0:01:01.9]} 50. h4 {[%clk 0:00:03.3]} 50... gxh4 {[%clk 0:01:01.3]} 51. Kh3
{[%clk 0:00:03.5]} 51... g5 {[%clk 0:01:01.6]} 52. Kg4 {[%clk 0:00:03.1]} 52...
Ra4+ {[%clk 0:01:01.2]} 53. Kf5 {[%clk 0:00:02.5]} 53... Rf4+ {[%clk 0:00:59.7]}
54. Kg6 {[%clk 0:00:02.2]} 54... g4 {[%clk 0:01:00]} 55. fxg4 {[%clk 0:00:01.6]}
55... Rxg4+ {[%clk 0:00:58.8]} 56. Kh5 {[%clk 0:00:01.4]} 56... Rxg2 {[%clk
0:00:58.1]} 57. Kxh4 {[%clk 0:00:01.2]} 57... Ra2 {[%clk 0:00:57.5]} 0-1

[Event "*** SCC Grand Prix: Titled Tuesday Blitz"]
[Site "Chess.com"]
[Date "2020.10.13"]
[Round "10"]
[White "MarceloPlaya"]
[Black "Ariadna_Atreides"]
[Result "1-0"]
[WhiteElo "2268"]
[BlackElo "2045"]
[TimeControl "180+1"]
[EndTime "11:55:44 PDT"]
[Termination "MarceloPlaya won by resignation"]

1. e4 {[%clk 0:03:00.9]} 1... c5 {[%clk 0:02:59.3]} 2. Nf3 {[%clk 0:02:52.6]}
2... d6 {[%clk 0:02:59.3]} 3. d4 {[%clk 0:02:51.4]} 3... cxd4 {[%clk 0:02:57.8]}
4. Nxd4 {[%clk 0:02:50.7]} 4... Nf6 {[%clk 0:02:57.5]} 5. Nc3 {[%clk 0:02:49.4]}
5... Nc6 {[%clk 0:02:57.9]} 6. Bg5 {[%clk 0:02:49]} 6... e6 {[%clk 0:02:57]} 7.
Qd2 {[%clk 0:02:48.9]} 7... a6 {[%clk 0:02:57.5]} 8. O-O-O {[%clk 0:02:48.1]}
8... Bd7 {[%clk 0:02:58]} 9. f3 {[%clk 0:02:46.7]} 9... b5 {[%clk 0:02:49.9]}
10. Kb1 {[%clk 0:02:45]} 10... Be7 {[%clk 0:02:48.8]} 11. h4 {[%clk 0:02:44.3]}
11... Qb6 {[%clk 0:02:47.2]} 12. Be3 {[%clk 0:02:41.4]} 12... Qc7 {[%clk
0:02:41]} 13. g4 {[%clk 0:02:39.5]} 13... Na5 {[%clk 0:02:24]} 14. Bd3 {[%clk
0:02:26.2]} 14... Nc4 {[%clk 0:02:21.9]} 15. Bxc4 {[%clk 0:02:24.8]} 15... Qxc4
{[%clk 0:02:21.1]} 16. h5 {[%clk 0:02:18.7]} 16... h6 {[%clk 0:02:18.9]} 17.
Nce2 {[%clk 0:02:06.8]} 17... a5 {[%clk 0:01:46.6]} 18. Ng3 {[%clk 0:02:00]}
18... a4 {[%clk 0:01:35.4]} 19. g5 {[%clk 0:01:51]} 19... hxg5 {[%clk
0:01:34.1]} 20. Bxg5 {[%clk 0:01:50]} 20... b4 {[%clk 0:01:12.3]} 21. f4 {[%clk
0:01:29.2]} 21... b3 {[%clk 0:01:05.5]} 22. cxb3 {[%clk 0:01:27.5]} 22... axb3
{[%clk 0:01:05]} 23. a3 {[%clk 0:00:51.8]} 23... e5 {[%clk 0:00:38.7]} 24. Bxf6
{[%clk 0:00:48.8]} 24... Bxf6 {[%clk 0:00:33.1]} 25. Ndf5 {[%clk 0:00:45.3]}
25... Bxf5 {[%clk 0:00:29.5]} 26. Nxf5 {[%clk 0:00:34.5]} 26... Qxe4+ {[%clk
0:00:27]} 27. Qd3 {[%clk 0:00:34.5]} 27... Qxd3+ {[%clk 0:00:24.4]} 28. Rxd3
{[%clk 0:00:34.3]} 28... O-O-O {[%clk 0:00:09]} 29. Rc1+ {[%clk 0:00:31.8]}
29... Kd7 {[%clk 0:00:06.2]} 30. Rxb3 {[%clk 0:00:28.7]} 30... exf4 {[%clk
0:00:04.5]} 31. Rd3 {[%clk 0:00:15.7]} 31... Ke6 {[%clk 0:00:03.4]} 32. Nd4+
{[%clk 0:00:15.4]} 32... Bxd4 {[%clk 0:00:02.8]} 33. Rxd4 {[%clk 0:00:15.4]}
33... Ke5 {[%clk 0:00:03.7]} 34. Rcd1 {[%clk 0:00:14.9]} 34... Rxh5 {[%clk
0:00:01.1]} 35. Rd5+ {[%clk 0:00:14.5]} 35... Kf6 {[%clk 0:00:01.5]} 36. Rxh5
{[%clk 0:00:14.2]} 36... g6 {[%clk 0:00:01.5]} 37. Rhd5 {[%clk 0:00:13.5]} 37...
f3 {[%clk 0:00:01.7]} 38. R5d3 {[%clk 0:00:12.6]} 38... Ke6 {[%clk 0:00:02.1]}
39. Rxf3 {[%clk 0:00:12.2]} 39... Ke5 {[%clk 0:00:02.1]} 40. a4 {[%clk
0:00:11.8]} 40... d5 {[%clk 0:00:02.6]} 41. a5 {[%clk 0:00:11.8]} 41... d4
{[%clk 0:00:02.9]} 42. a6 {[%clk 0:00:11.2]} 42... Ke4 {[%clk 0:00:03.2]} 43.
Ra3 {[%clk 0:00:10.7]} 43... d3 {[%clk 0:00:03.1]} 44. Raxd3 {[%clk 0:00:10.1]}
44... Ra8 {[%clk 0:00:03.5]} 45. Ra3 {[%clk 0:00:09]} 45... g5 {[%clk
0:00:02.9]} 46. a7 {[%clk 0:00:08.3]} 46... g4 {[%clk 0:00:02.8]} 47. Rd7 {[%clk
0:00:07.4]} 47... g3 {[%clk 0:00:03]} 48. Rxf7 {[%clk 0:00:05.8]} 48... Kd4
{[%clk 0:00:03.1]} 49. Rg7 {[%clk 0:00:05.5]} 49... g2 {[%clk 0:00:03.2]} 50.
Rxg2 {[%clk 0:00:05.5]} 50... Rxa7 {[%clk 0:00:03.3]} 51. Rd2+ {[%clk
0:00:04.8]} 51... Ke4 {[%clk 0:00:02.6]} 52. Rxa7 {[%clk 0:00:05.3]} 1-0

[Event "*** SCC Grand Prix: Titled Tuesday Blitz"]
[Site "Chess.com"]
[Date "2020.10.13"]
[Round "10"]
[White "Meri-Arabidze"]
[Black "Mikhail_Golubev"]
[Result "1-0"]
[WhiteElo "2694"]
[BlackElo "2537"]
[TimeControl "180+1"]
[EndTime "11:55:49 PDT"]
[Termination "Meri-Arabidze won by resignation"]

1. d4 {[%clk 0:03:00.9]} 1... Nf6 {[%clk 0:02:59]} 2. c4 {[%clk 0:03:00.2]} 2...
g6 {[%clk 0:02:59.2]} 3. Nc3 {[%clk 0:02:59]} 3... Bg7 {[%clk 0:02:59.7]} 4. g3
{[%clk 0:02:59]} 4... O-O {[%clk 0:02:56.4]} 5. Bg2 {[%clk 0:02:59.2]} 5... d6
{[%clk 0:02:57]} 6. e4 {[%clk 0:02:59.4]} 6... e5 {[%clk 0:02:52.5]} 7. Nge2
{[%clk 0:02:59.8]} 7... Nc6 {[%clk 0:02:45.1]} 8. d5 {[%clk 0:02:59.6]} 8... Nd4
{[%clk 0:02:45.1]} 9. Be3 {[%clk 0:02:52.7]} 9... Nxe2 {[%clk 0:02:45.1]} 10.
Qxe2 {[%clk 0:02:51.8]} 10... Ng4 {[%clk 0:02:43.7]} 11. Bd2 {[%clk 0:02:46.9]}
11... f5 {[%clk 0:02:43.8]} 12. f3 {[%clk 0:02:46.1]} 12... Nf6 {[%clk
0:02:42.1]} 13. O-O-O {[%clk 0:02:45.4]} 13... c5 {[%clk 0:02:33.3]} 14. dxc6
{[%clk 0:02:05.2]} 14... bxc6 {[%clk 0:02:33.1]} 15. f4 {[%clk 0:02:04.9]} 15...
fxe4 {[%clk 0:02:24.1]} 16. Nxe4 {[%clk 0:02:03.7]} 16... exf4 {[%clk
0:02:03.8]} 17. Bxf4 {[%clk 0:02:01.2]} 17... Bg4 {[%clk 0:02:02.8]} 18. Bf3
{[%clk 0:01:48.1]} 18... Bxf3 {[%clk 0:01:56.2]} 19. Qxf3 {[%clk 0:01:49]} 19...
Nxe4 {[%clk 0:01:51.4]} 20. Qxe4 {[%clk 0:01:49.9]} 20... Rb8 {[%clk 0:01:28.7]}
21. Qe6+ {[%clk 0:01:30]} 21... Kh8 {[%clk 0:01:27.8]} 22. Rd2 {[%clk
0:01:18.6]} 22... Qa5 {[%clk 0:01:14.3]} 23. Bxd6 {[%clk 0:00:55.5]} 23... Rfe8
{[%clk 0:00:43.7]} 24. Qf7 {[%clk 0:00:37.8]} 24... Bxb2+ {[%clk 0:00:17.2]} 25.
Kd1 {[%clk 0:00:25.5]} 25... Qa4+ {[%clk 0:00:14.2]} 26. Rc2 {[%clk 0:00:25.6]}
26... Rbd8 {[%clk 0:00:13]} 27. c5 {[%clk 0:00:24.9]} 27... Qd4+ {[%clk
0:00:10.6]} 28. Rd2 {[%clk 0:00:23.3]} 28... Qa4+ {[%clk 0:00:09.9]} 29. Qb3
{[%clk 0:00:23]} 29... Qxb3+ {[%clk 0:00:08.1]} 30. axb3 {[%clk 0:00:23.9]}
30... Be5 {[%clk 0:00:07.7]} 31. Re1 {[%clk 0:00:22.5]} 31... Bf6 {[%clk
0:00:07.1]} 32. Rxe8+ {[%clk 0:00:21.5]} 32... Rxe8 {[%clk 0:00:07.4]} 33. Ra2
{[%clk 0:00:21.2]} 33... Rd8 {[%clk 0:00:06.3]} 34. Rxa7 {[%clk 0:00:19.8]}
34... Be5 {[%clk 0:00:06]} 35. Kc2 {[%clk 0:00:17.6]} 35... Bxd6 {[%clk
0:00:06]} 36. cxd6 {[%clk 0:00:18.5]} 36... Rxd6 {[%clk 0:00:06.3]} 37. Rc7
{[%clk 0:00:19.1]} 37... Kg8 {[%clk 0:00:05.4]} 38. Kc3 {[%clk 0:00:19.4]} 38...
Re6 {[%clk 0:00:05.5]} 39. Kc4 {[%clk 0:00:19.5]} 39... h5 {[%clk 0:00:05.5]}
40. b4 {[%clk 0:00:19.3]} 40... g5 {[%clk 0:00:05]} 41. Kc5 {[%clk 0:00:18.7]}
41... Re2 {[%clk 0:00:05.1]} 42. Rxc6 {[%clk 0:00:16.6]} 42... Rxh2 {[%clk
0:00:05]} 43. Rg6+ {[%clk 0:00:16.6]} 43... Kf7 {[%clk 0:00:05.2]} 44. Rxg5
{[%clk 0:00:17.5]} 44... Kf6 {[%clk 0:00:05.6]} 45. Rd5 {[%clk 0:00:17.6]} 45...
Kg6 {[%clk 0:00:05.9]} 46. b5 {[%clk 0:00:17.5]} 46... Rg2 {[%clk 0:00:05.4]}
47. Rd3 {[%clk 0:00:16.9]} 47... Rc2+ {[%clk 0:00:05.9]} 48. Kd6 {[%clk
0:00:16.5]} 48... Rb2 {[%clk 0:00:06]} 49. Kc6 {[%clk 0:00:16.7]} 49... Rc2+
{[%clk 0:00:06.4]} 50. Kb7 {[%clk 0:00:16.9]} 50... Kf5 {[%clk 0:00:06.6]} 51.
b6 {[%clk 0:00:17.2]} 51... Kg4 {[%clk 0:00:07]} 52. Ka7 {[%clk 0:00:15.2]}
52... Ra2+ {[%clk 0:00:06.9]} 53. Kb8 {[%clk 0:00:15.1]} 53... Rg2 {[%clk
0:00:07.8]} 54. b7 {[%clk 0:00:14.9]} 54... Rb2 {[%clk 0:00:07.5]} 55. Rc3
{[%clk 0:00:14]} 55... Kh3 {[%clk 0:00:06.5]} 56. Kc8 {[%clk 0:00:13.8]} 1-0

[Event "*** SCC Grand Prix: Titled Tuesday Blitz"]
[Site "Chess.com"]
[Date "2020.10.13"]
[Round "10"]
[White "Roza_Idrisova"]
[Black "ajdemipopushi"]
[Result "0-1"]
[WhiteElo "2170"]
[BlackElo "2330"]
[TimeControl "180+1"]
[EndTime "11:55:50 PDT"]
[Termination "ajdemipopushi won on time"]

1. d4 {[%clk 0:03:00.9]} 1... Nf6 {[%clk 0:02:57.8]} 2. Nf3 {[%clk 0:03:01.2]}
2... c5 {[%clk 0:02:57.9]} 3. d5 {[%clk 0:03:00.8]} 3... b5 {[%clk 0:02:58.2]}
4. c4 {[%clk 0:03:00]} 4... g6 {[%clk 0:02:58]} 5. b3 {[%clk 0:02:58]} 5... Bg7
{[%clk 0:02:57.3]} 6. Bb2 {[%clk 0:02:58.1]} 6... O-O {[%clk 0:02:51.2]} 7. Nbd2
{[%clk 0:02:57.8]} 7... bxc4 {[%clk 0:02:49.4]} 8. bxc4 {[%clk 0:02:57.4]} 8...
d6 {[%clk 0:02:49.8]} 9. e4 {[%clk 0:02:55.3]} 9... Bg4 {[%clk 0:02:43.8]} 10.
Be2 {[%clk 0:02:55.3]} 10... Nbd7 {[%clk 0:02:42.6]} 11. O-O {[%clk 0:02:54.6]}
11... Qa5 {[%clk 0:02:42.2]} 12. Qc2 {[%clk 0:02:51.6]} 12... Bxf3 {[%clk
0:02:39.5]} 13. Nxf3 {[%clk 0:02:44.5]} 13... Rab8 {[%clk 0:02:34.9]} 14. Bc3
{[%clk 0:02:43.8]} 14... Qa3 {[%clk 0:02:34.4]} 15. h3 {[%clk 0:02:27.9]} 15...
Nh5 {[%clk 0:02:22.1]} 16. Bxg7 {[%clk 0:02:26.3]} 16... Kxg7 {[%clk 0:02:22]}
17. Rab1 {[%clk 0:02:22.9]} 17... Rb4 {[%clk 0:02:12.7]} 18. Rxb4 {[%clk
0:02:20.1]} 18... cxb4 {[%clk 0:02:12.3]} 19. Rb1 {[%clk 0:02:19]} 19... Nc5
{[%clk 0:01:56.4]} 20. Nd4 {[%clk 0:02:11.8]} 20... Nf4 {[%clk 0:01:23.4]} 21.
Bf1 {[%clk 0:02:06.8]} 21... Qc3 {[%clk 0:01:16.1]} 22. Qxc3 {[%clk 0:01:26.6]}
22... bxc3 {[%clk 0:01:15.8]} 23. Rc1 {[%clk 0:01:24.4]} 23... Nxe4 {[%clk
0:01:13.7]} 24. g3 {[%clk 0:01:20.5]} 24... Nh5 {[%clk 0:01:09.1]} 25. Bd3
{[%clk 0:01:18.7]} 25... Nc5 {[%clk 0:01:08.5]} 26. Be2 {[%clk 0:01:16.2]} 26...
Nf6 {[%clk 0:01:03.2]} 27. Rxc3 {[%clk 0:01:15.3]} 27... Rb8 {[%clk 0:01:03.1]}
28. Nb3 {[%clk 0:01:07.5]} 28... Nfd7 {[%clk 0:01:02.7]} 29. Re3 {[%clk
0:01:00.1]} 29... Kf8 {[%clk 0:01:00.2]} 30. Bg4 {[%clk 0:00:55]} 30... f5
{[%clk 0:00:59.7]} 31. Bd1 {[%clk 0:00:53.2]} 31... Rb4 {[%clk 0:00:59.5]} 32.
Rc3 {[%clk 0:00:44.3]} 32... Ne5 {[%clk 0:00:57.9]} 33. Be2 {[%clk 0:00:41.1]}
33... Ne4 {[%clk 0:00:54]} 34. Rc2 {[%clk 0:00:36.9]} 34... h5 {[%clk
0:00:46.4]} 35. f4 {[%clk 0:00:33.9]} 35... Nd7 {[%clk 0:00:44.8]} 36. Kg2
{[%clk 0:00:33.4]} 36... Ndc5 {[%clk 0:00:39.6]} 37. Nd4 {[%clk 0:00:26.6]}
37... a5 {[%clk 0:00:31.6]} 38. Nc6 {[%clk 0:00:20.5]} 38... Ra4 {[%clk
0:00:26.5]} 39. Bf3 {[%clk 0:00:18.9]} 39... Ra3 {[%clk 0:00:23.2]} 40. Bxe4
{[%clk 0:00:17]} 40... Nxe4 {[%clk 0:00:23.1]} 41. Nd4 {[%clk 0:00:13.8]} 41...
Rxg3+ {[%clk 0:00:22.2]} 42. Kh2 {[%clk 0:00:14]} 42... Ra3 {[%clk 0:00:20.7]}
43. Nc6 {[%clk 0:00:09.6]} 43... Rf3 {[%clk 0:00:18.4]} 44. Nd4 {[%clk
0:00:07.7]} 44... Rxf4 {[%clk 0:00:18.1]} 45. Nc6 {[%clk 0:00:07.6]} 45... Rf2+
{[%clk 0:00:17.9]} 46. Rxf2 {[%clk 0:00:07.1]} 46... Nxf2 {[%clk 0:00:18.1]} 47.
Nxa5 {[%clk 0:00:07.8]} 47... Nd3 {[%clk 0:00:18]} 48. Kg2 {[%clk 0:00:07.6]}
48... g5 {[%clk 0:00:18]} 49. Kf3 {[%clk 0:00:07.6]} 49... g4+ {[%clk
0:00:18.1]} 50. hxg4 {[%clk 0:00:07.3]} 50... fxg4+ {[%clk 0:00:18.6]} 51. Kg3
{[%clk 0:00:07.1]} 51... Kg7 {[%clk 0:00:18.5]} 52. Nc6 {[%clk 0:00:04.5]} 52...
Kh6 {[%clk 0:00:18.3]} 53. Nxe7 {[%clk 0:00:04.2]} 53... Kg5 {[%clk 0:00:18.6]}
54. Nc8 {[%clk 0:00:03.8]} 54... h4+ {[%clk 0:00:18.8]} 55. Kg2 {[%clk
0:00:04.1]} 55... h3+ {[%clk 0:00:18.9]} 56. Kg3 {[%clk 0:00:03]} 56... Nf4
{[%clk 0:00:19]} 57. Nxd6 {[%clk 0:00:02.9]} 57... Nh5+ {[%clk 0:00:19]} 58. Kh2
{[%clk 0:00:02.6]} 58... Kf4 {[%clk 0:00:19]} 59. Nf7 {[%clk 0:00:01.4]} 59...
Ng7 {[%clk 0:00:16.8]} 0-1

[Event "*** SCC Grand Prix: Titled Tuesday Blitz"]
[Site "Chess.com"]
[Date "2020.10.13"]
[Round "10"]
[White "RobertoJBM"]
[Black "blitzking1729"]
[Result "1-0"]
[WhiteElo "2719"]
[BlackElo "2558"]
[TimeControl "180+1"]
[EndTime "11:55:52 PDT"]
[Termination "RobertoJBM won by checkmate"]

1. d4 {[%clk 0:02:52.5]} 1... d5 {[%clk 0:02:56.3]} 2. c4 {[%clk 0:02:52]} 2...
e6 {[%clk 0:02:55.6]} 3. Nc3 {[%clk 0:02:51.2]} 3... c5 {[%clk 0:02:55.4]} 4.
cxd5 {[%clk 0:02:50.2]} 4... exd5 {[%clk 0:02:56.3]} 5. Nf3 {[%clk 0:02:50.1]}
5... Nc6 {[%clk 0:02:56.7]} 6. e3 {[%clk 0:02:45.5]} 6... Nf6 {[%clk 0:02:51.2]}
7. Be2 {[%clk 0:02:44.8]} 7... a6 {[%clk 0:02:47.4]} 8. O-O {[%clk 0:02:44.1]}
8... Be7 {[%clk 0:02:47.7]} 9. dxc5 {[%clk 0:02:43.9]} 9... Bxc5 {[%clk
0:02:48.1]} 10. b3 {[%clk 0:02:43.5]} 10... O-O {[%clk 0:02:48.1]} 11. Bb2
{[%clk 0:02:43.2]} 11... Bg4 {[%clk 0:02:47.7]} 12. Rc1 {[%clk 0:02:42.9]} 12...
Ba7 {[%clk 0:02:46.4]} 13. Nd4 {[%clk 0:02:40.4]} 13... Nxd4 {[%clk 0:02:27.1]}
14. Bxg4 {[%clk 0:02:38.5]} 14... Nc6 {[%clk 0:02:26.4]} 15. Bf3 {[%clk
0:02:32.5]} 15... d4 {[%clk 0:02:24.8]} 16. exd4 {[%clk 0:02:31.6]} 16... Bxd4
{[%clk 0:02:25]} 17. Bxc6 {[%clk 0:02:26.6]} 17... bxc6 {[%clk 0:02:23.8]} 18.
Qc2 {[%clk 0:02:23.7]} 18... Ng4 {[%clk 0:02:11.9]} 19. Ne4 {[%clk 0:02:15.2]}
19... Qh4 {[%clk 0:01:59.5]} 20. h3 {[%clk 0:02:14.4]} 20... Bxb2 {[%clk
0:01:57.3]} 21. Qxb2 {[%clk 0:02:13.7]} 21... Ne3 {[%clk 0:01:57.4]} 22. Rfe1
{[%clk 0:02:11.8]} 22... Nd5 {[%clk 0:01:51.6]} 23. Rxc6 {[%clk 0:02:04.9]}
23... Nb4 {[%clk 0:01:45.3]} 24. Rc3 {[%clk 0:01:58.6]} 24... Rfe8 {[%clk
0:01:41.9]} 25. Rce3 {[%clk 0:01:55]} 25... Re6 {[%clk 0:01:31.2]} 26. Qd2
{[%clk 0:01:47.6]} 26... a5 {[%clk 0:01:27.7]} 27. a3 {[%clk 0:01:43]} 27... Rd8
{[%clk 0:01:24.3]} 28. axb4 {[%clk 0:01:15.5]} 28... Rxd2 {[%clk 0:01:20.9]} 29.
Nxd2 {[%clk 0:01:16.1]} 29... Qxb4 {[%clk 0:01:17.5]} 30. Nf3 {[%clk 0:01:13.5]}
30... h6 {[%clk 0:01:13]} 31. Rxe6 {[%clk 0:01:12.4]} 31... fxe6 {[%clk
0:01:13.1]} 32. Re3 {[%clk 0:01:13.3]} 32... Qb6 {[%clk 0:01:11.2]} 33. g3
{[%clk 0:01:12]} 33... Qb4 {[%clk 0:01:06.3]} 34. Ne5 {[%clk 0:01:10.6]} 34...
Kh7 {[%clk 0:01:04.5]} 35. h4 {[%clk 0:01:10.6]} 35... h5 {[%clk 0:01:03.1]} 36.
Nf3 {[%clk 0:01:09.8]} 36... g6 {[%clk 0:00:53.6]} 37. Ng5+ {[%clk 0:01:09.3]}
37... Kg8 {[%clk 0:00:52.4]} 38. Nxe6 {[%clk 0:01:09.3]} 38... Qd2 {[%clk
0:00:37]} 39. Nf4 {[%clk 0:01:07.5]} 39... Qd1+ {[%clk 0:00:35.7]} 40. Kg2
{[%clk 0:01:07]} 40... Qc2 {[%clk 0:00:30.1]} 41. Rd3 {[%clk 0:00:49.3]} 41...
Qc6+ {[%clk 0:00:26.4]} 42. Rd5 {[%clk 0:00:48.5]} 42... Qb7 {[%clk 0:00:24.4]}
43. Kg1 {[%clk 0:00:48.5]} 43... Qxb3 {[%clk 0:00:19.3]} 44. Rxa5 {[%clk
0:00:46.1]} 44... Qd1+ {[%clk 0:00:19.2]} 45. Kg2 {[%clk 0:00:43]} 45... Qb1
{[%clk 0:00:18.7]} 46. Rg5 {[%clk 0:00:40.3]} 46... Qe4+ {[%clk 0:00:18.3]} 47.
f3 {[%clk 0:00:33.4]} 47... Qc2+ {[%clk 0:00:17.5]} 48. Kh3 {[%clk 0:00:33.1]}
48... Qc8+ {[%clk 0:00:17]} 49. g4 {[%clk 0:00:31.5]} 49... hxg4+ {[%clk
0:00:16.2]} 50. Rxg4 {[%clk 0:00:32.4]} 50... Kh7 {[%clk 0:00:12]} 51. Nxg6
{[%clk 0:00:31.6]} 51... Qc6 {[%clk 0:00:11.2]} 52. Ne5 {[%clk 0:00:30.9]} 52...
Qd5 {[%clk 0:00:09.7]} 53. f4 {[%clk 0:00:29.3]} 53... Qb3+ {[%clk 0:00:08.9]}
54. Kg2 {[%clk 0:00:29.3]} 54... Qd5+ {[%clk 0:00:08.7]} 55. Kf2 {[%clk
0:00:29.4]} 55... Qa2+ {[%clk 0:00:08.4]} 56. Kg3 {[%clk 0:00:29.4]} 56... Qb3+
{[%clk 0:00:08.3]} 57. Nf3 {[%clk 0:00:30.3]} 57... Qb8 {[%clk 0:00:07.5]} 58.
Rg5 {[%clk 0:00:30.3]} 58... Qb2 {[%clk 0:00:06.6]} 59. h5 {[%clk 0:00:30.7]}
59... Qe2 {[%clk 0:00:06.1]} 60. Re5 {[%clk 0:00:29.9]} 60... Qd1 {[%clk
0:00:05.9]} 61. Re6 {[%clk 0:00:28.7]} 61... Qd5 {[%clk 0:00:05.1]} 62. Ng5+
{[%clk 0:00:27.3]} 62... Kg7 {[%clk 0:00:05.2]} 63. h6+ {[%clk 0:00:27.3]} 63...
Kg8 {[%clk 0:00:04.6]} 64. Re8# {[%clk 0:00:26.6]} 1-0